Cogmind - Beta 15 @@@ ROGUE MODE // 2025.06.24 @ 20:47:02 Player: 7604 Result: Destroyed by DB-285(R) with Subdweller Laser Performance ------------- Evolutions (0) 0 Regions Visited (2) 400 Robots Destroyed (23) 115 Value Destroyed (516) 516 Prototype IDs (2) 40 Alien Tech Used (0) 0 Bonus (-40) -40 TOTAL SCORE: 1031 Bonus ------- Friendly Fire -40 Cogmind --------- Core Integrity 0/250 Matter 300/300 Energy 125/125 System Corruption 0% Temperature Cool (6) Movement Treading (320) Ox2 Location -10/Subcaves Parts ------- > --- POWER (1) -------- Light Ion Engine > --- PROPULSION (2) --- Light Treads Light Treads > --- UTILITY (2) ------ Huge Storage Unit Seismic Detector > --- WEAPON (2) ------- Subdweller Beam Cannon Subdweller Beam Cannon > --- INVENTORY (25) --- Ion Engine Spiked Treads Wheel Wheel Heat Sink Sensor Array Seismic Detector ECM Suite Power Shielding Scrap Shield Medium Laser Subdweller Laser Subdweller Beam Cannon Assault Rifle Light Assault Rifle Light Assault Rifle Light Cannon Grenade Launcher Datajack Mining Laser Multitool Makeshift Hammer Peak State ------------ > --- POWER ------------ Light Ion Engine > --- PROPULSION ------- Light Treads Light Treads > --- UTILITY ---------- Huge Storage Unit Seismic Detector > --- WEAPON ----------- Subdweller Laser Subdweller Beam Cannon > --- INVENTORY -------- Ion Engine Spiked Treads Wheel Wheel Heat Sink Sensor Array Seismic Detector ECM Suite Power Shielding Scrap Shield Medium Laser Subdweller Beam Cannon Assault Rifle Light Assault Rifle Light Assault Rifle Light Cannon Grenade Launcher Datajack Mining Laser Multitool Makeshift Hammer [Rating: 12] Favorites ----------- Power Light Ion Engine Engine Light Ion Engine Propulsion Light Treads Treads Light Treads Leg Aluminum Leg Utility Seismic Detector Device Seismic Detector Storage Huge Storage Unit Protection Power Shielding Weapon Subdweller Beam Cannon Energy Gun Medium Laser Energy Cannon Subdweller Beam Cannon Ballistic Gun Light Assault Rifle Ballistic Cannon Light Cannon Launcher Grenade Launcher Build | -11 -10 -10 ------- Run | Yrd Mat Sub Slots Evolved . | . . . Power . | . . . Propulsion . | . . . Utility . | . . . Weapon . | . . . Parts Attached 18 | 1 11 6 Power 2 | . 1 1 Engine 2 | . 1 1 Core . | . . . Reactor . | . . . Propulsion 5 | . 4 1 Treads 5 | . 4 1 Leg . | . . . Wheel . | . . . Hover . | . . . Flight . | . . . Utility 4 | 1 3 . Device 1 | 1 . . Storage 2 | . 2 . Processor . | . . . Hackware . | . . . Protection 1 | . 1 . Artifact . | . . . Weapon 7 | . 3 4 Energy Gun 2 | . 1 1 Energy Cannon 2 | . . 2 Ballistic Gun 1 | . 1 . Ballistic Cannon 1 | . . 1 Launcher 1 | . 1 . Special Weapon . | . . . Impact Weapon . | . . . Slashing Weapon . | . . . Piercing Weapon . | . . . Special Melee Weapon . | . . . Unidentified Prototypes . | . . . Parts Lost 5 | . 3 2 Power 2 | . 1 1 Propulsion 3 | . 2 1 Utility . | . . . Weapon . | . . . Highest Loss Streak 2 | . 2 2 To Critical Strikes . | . . . Average Backups 12 | 6 7 18 Power . | 1 . 1 Propulsion 1 | 4 1 1 Utility 3 | . 2 5 Weapon 5 | 1 2 8 Tool/Special . | . . . Unused Backups 18 | . 3 15 Power 1 | . . 1 Propulsion 5 | . 2 3 Utility 6 | . 1 5 Weapon 4 | . . 4 Tool/Special 2 | . . 2 Average Slot Usage (%) 99 | . 99 99 Engine 13 | . 13 13 Treads 27 | . 26 28 Device 13 | . 13 14 Storage 14 | . 14 14 Energy Gun 11 | . 13 9 Energy Cannon 8 | . . 17 Ballistic Gun 7 | . 14 . Peak Build Rating 12 | 7 8 12 Average Rating 8 | 6 7 10 On Entrance 7 | 6 7 8 Naked Turns . | . . . Heaviest Build 100 | 12 88 100 Greatest Support 40 | 20 40 40 Greatest Overweight (x) 2 | . 2 2 Average Overweight (x) 1 | . 1 2 Largest Inventory Capacity 25 | 8 25 25 Average Capacity 24 | 8 24 25 Most Carried 23 | 6 13 23 Average Carried 13 | 6 7 19 Final Capacity 25 | 8 25 25 Final Carried 23 | 6 13 23 Class Distribution -------------------- 56% | Mutant 43% | Scavenger-Mutant Dominant Class ---------------- Mutant | -10/Materials Scavenger-Mutant | -10/Subcaves Resources | -11 -10 -10 ----------- Run | Yrd Mat Sub Matter Collected 523 | 215 208 100 Remotely . | . . . Salvage Created 754 | 21 585 148 Parts 47 | 3 31 13 Haulers Intercepted 2 | . 2 . Recyclers Shooed 1 | 1 . . Parts Field Recycled . | . . . Retrieved Matter . | . . . Parts Self-Destructed 6 | . . 6 Prevented . | . . . Kills | -11 -10 -10 ------- Run | Yrd Mat Sub Combat Hostiles Destroyed 14 | . 10 4 Guns 7 | . 7 . Cannons 1 | . . 1 AOE 6 | . 3 3 Classes Destroyed 9 | 1 5 3 Worker 3 | . 3 . Tunneler 1 | 1 . . Hauler 2 | . 2 . Watcher 3 | . 3 . Swarmer 3 | . 3 . Grunt 7 | . 7 . Artisan 1 | . . 1 Subdweller 4 | . . 4 Scientist 1 | . . 1 Best Kill Streak 5 | 1 5 3 Combat Bots Only 3 | . 3 3 Max Kills in Single Turn 2 | 1 2 2 Gunslinging . | . . . Exploded 2 | . 1 2 Melee . | . . . Uniques/NPCs Destroyed . | . . . Combat | -11 -10 -10 -------- Run | Yrd Mat Sub Hostile Shots Fired 89 | . 75 14 Missed 24 | . 20 4 Hits 65 | . 55 10 Projectile 65 | . 55 10 Critical Strikes 1 | . . 1 Damage Taken 1078 | . 689 389 Core 259 | . 196 63 Absorbed by Shields . | . . . Core Remaining (%) 100 | 100 . . Volleys Fired 93 | 5 56 32 Largest 2 | 2 2 2 Hottest 140 | 70 70 140 Shots Fired 152 | 10 108 34 Gun 132 | 10 104 18 Cannon 12 | . . 12 Launcher 8 | . 4 4 Special . | . . . Kinetic 57 | 5 52 . Thermal 87 | 5 52 30 Explosive 8 | . 4 4 Electromagnetic . | . . . Robot Hit Streak 6 | 5 6 4 Robot Miss Streak 3 | 1 3 1 Penetration Max . | . . . Secondary Targets . | . . . Shots Hit Robots 77 | 7 63 7 Core Hits 41 | 3 31 7 Critical Kills 1 | . 1 . Critical Parts Destroyed . | . . . Critical Strikes 4 | . 4 . Burn 3 | . 3 . Destroy 1 | . 1 . Melee Attacks . | . . . Impact . | . . . Slashing . | . . . Piercing . | . . . Sneak Attacks . | . . . Combat Hostiles . | . . . Follow-up Attacks . | . . . Damage Inflicted 1525 | 70 969 486 Guns 807 | 70 716 21 Cannons 54 | . . 54 Explosions 659 | . 248 411 Melee . | . . . Ramming 5 | . 5 . Kinetic 336 | 22 314 . Thermal 525 | 48 402 75 Explosive 659 | . 248 411 Electromagnetic . | . . . Impact . | . . . Slashing . | . . . Piercing . | . . . Highest Corruption . | . . . Average Corruption . | . . . Corruption Purged . | . . . Corruption Blocked . | . . . Overload Shots . | . . . Overflow Damage 22 | . 11 11 Projectiles . | . . . Explosions 22 | . 11 11 Melee . | . . . Knockbacks . | . . . Impact . | . . . Kinetic . | . . . Secondary . | . . . Self-Inflicted Damage 146 | . . 146 Shots 4 | . . 4 Rammed 3 | . 3 . Targets Rammed 3 | . 3 . Kicked . | . . . Crushed . | . . . Highest Temperature 317 | 50 317 36 Average Temperature 86 | 24 93 21 Received Heat Transfer 450 | . 378 72 Effects 2 | . 2 . Interference 2 | . 2 . Siege Activations . | . . . Martial Activations . | . . . Shielding Activations . | . . . Robots Disrupted . | . . . Combat Hostiles . | . . . Robots Corrupted . | . . . Combat Hostiles . | . . . Parts Fried . | . . . Impact Corruptions . | . . . Robots Melted . | . . . Combat Hostiles . | . . . Parts Melted 9 | . 8 1 Heat Transferred 1653 | 148 1406 99 Parts Sabotaged . | . . . Parts Stolen . | . . . Parts Stripped . | . . . Power Chain Reactions . | . . . Alert | -11 -10 -10 ------- Run | Yrd Mat Sub Maximum Alert Level . | . . . Low Security (%) 100 | 100 100 . Level 1 . | . . . Level 2 . | . . . Level 3 . | . . . Level 4 . | . . . Level 5 . | . . . High Security . | . . . Max Security . | . . . Peak Influence 86 | 5 86 . Initial . | . . . Average 18 | 1 19 . Influence Increases 352 | 5 347 . Destroy 0b10 Robot/C 200 | . 200 . Destroy 0b10 Robot/NC 45 | 5 40 . Destroy Leader 60 | . 60 . Successful Hack 22 | . 22 . Destroy Structure 10 | . 10 . Lose Combat Pursuer 15 | . 15 . Influence Decreases 352 | 5 347 . Time Decay 322 | 5 317 . Lost Part 30 | . 30 . Squads Dispatched 2 | . 2 . Investigation . | . . . Extermination . | . . . Reinforcement 2 | . 2 . Assault . | . . . Garrison . | . . . Intercept . | . . . Searches Triggered . | . . . Construction Impeded . | . . . Haulers Reinforced . | . . . Active Scanning Responses . | . . . Cargo Convoy Interrupts . | . . . Stealth | -11 -10 -10 --------- Run | Yrd Mat Sub Distress Signals 3 | . 3 . Communications Jammed . | . . . Distress Signals . | . . . Times Spotted 23 | . 18 5 Peak Tracking Total 3 | . 3 2 Tactical Retreats 1 | . 1 . Traps | -11 -10 -10 ------- Run | Yrd Mat Sub Traps Triggered 1 | . 1 . Indirectly . | . . . Trap Hack Attempts . | . . . Triggered . | . . . Disarmed . | . . . Reprogrammed . | . . . Reused . | . . . Traps Extracted . | . . . Installed . | . . . Triggered . | . . . Machines | -11 -10 -10 ---------- Run | Yrd Mat Sub Machines Disabled . | . . . Max in Single Turn . | . . . Machines Repaired . | . . . Machines Dismantled . | . . . Machines Sabotaged . | . . . Overloaded Fab Kills . | . . . Hacking | -11 -10 -10 --------- Run | Yrd Mat Sub Machines Accessed 8 | . 8 . Terminals 5 | . 5 . Fabricators . | . . . Repair Stations 1 | . 1 . Recycling Units 2 | . 2 . Scanalyzers . | . . . Garrison Access . | . . . Total Hacks 17 | . 17 . Successful 12 | . 12 . Failed 5 | . 5 . Catastrophic . | . . . Database Lockouts . | . . . Manual 12 | . 12 . Terminals 13 | . 13 . Fabricators . | . . . Repair Stations 2 | . 2 . Recycling Units 2 | . 2 . Scanalyzers . | . . . Garrison Access . | . . . Terminal Hacks 3 | . 3 . Robot Analysis 1 | . 1 . Prototype ID Bank 1 | . 1 . Locate Traps 1 | . 1 . Fabricator Hacks . | . . . Repair Station Hacks 1 | . 1 . Scan Component 1 | . 1 . Recycling Unit Hacks 1 | . 1 . Retrieve Components 1 | . 1 . Scanalyzer . | . . . Garrison Access Hacks . | . . . Unauthorized Hacks 7 | . 7 . Terminals 7 | . 7 . Botnet 1 | . 1 . Operators 1 | . 1 . Skim 5 | . 5 . Fabricators . | . . . Repair Stations . | . . . Recycling Units . | . . . Scanalyzers . | . . . Garrison Access . | . . . Data Cores Recovered . | . . . Used . | . . . Hacking Detections 8 | . 8 . Full Trace Events . | . . . Feedback Events . | . . . Feedback Blocked . | . . . Robot Schematics Acquired . | . . . Robots Built . | . . . Authchips . | . . . Time . | . . . Total Robot Build Rating . | . . . Part Schematics Acquired . | . . . Parts Built . | . . . Authchips . | . . . Time . | . . . Total Part Build Rating . | . . . Parts Repaired . | . . . Time . | . . . Parts Recycled . | . . . Recycled Matter . | . . . Retrieved Matter . | . . . Retrieved Components 7 | . 7 . Parts Scanalyzed . | . . . Part Schematics Acquired . | . . . Parts Damaged . | . . . Bothacking | -11 -10 -10 ------------ Run | Yrd Mat Sub Used RIF Installer . | . . . Robots Hacked . | . . . Non-combat . | . . . Combat . | . . . Robot Hacks Applied . | . . . Relay Couplers Released . | . . . Fabnet Peak Effective % . | . . . Robots Rewired . | . . . Allies Hacked . | . . . Hacks Repelled . | . . . Allies | -11 -10 -10 -------- Run | Yrd Mat Sub Total Allies . | . . . Largest Group . | . . . Highest-Rated Group . | . . . Highest-Rated Ally . | . . . Total Orders . | . . . Ally Attacks . | . . . Total Damage . | . . . Kills . | . . . Allies Corrupted . | . . . Allies Melted . | . . . Intel | -11 -10 -10 ------- Run | Yrd Mat Sub Active Infowar (turns) 4021 | 12 2139 1870 Seismic 4021 | 12 2139 1870 Robot Analysis Total 1 | . 1 . Derelict Logs Recovered . | . . . Drone Launches . | . . . Drone Recoveries . | . . . Exploration | -11 -10 -10 ------------- Run | Yrd Mat Sub Turns Passed 4131 | 47 2214 1870 Spaces Moved 1074 | 27 605 442 Core . | . . . Treads 983 | . 541 442 Legs 91 | 27 64 . Wheels . | . . . Hover . | . . . Flight . | . . . Fastest Speed 120 | 120 120 320 Average Speed 305 | 120 302 320 Slowest Speed 320 | 120 320 320 Overloaded Moves . | . . . Propulsion Burnouts . | . . . Robots Hopped . | . . . Potential Cave-ins . | . . . Cave-ins Triggered . | . . . Exploration Rate (%) 38 | 3 89 23 Regions Visited 2 Branch Regions 1 Pre-discovered Areas 2 | . 2 . Known Exits Taken 1 | . 1 . Unknown Exits Taken 1 | 1 . . Scrap Searched 3 | . . 3 Spaces Dug . | . . . Terrain Destroyed 34 | . 8 26 Melee . | . . . Projectile 1 | . . 1 AOE 33 | . 8 25 Terrain Rammed . | . . . Walls Destroyed . | . . . Machines Disabled . | . . . Actions | -11 -10 -10 --------- Run | Yrd Mat Sub Total 1778 | 32 885 861 Wait 557 | . 187 370 Move 1072 | 26 604 442 Hop . | . . . Pick Up 22 | . 12 10 Fast Attach 4 | 1 2 1 Attach 6 | . 5 1 Detach 3 | . 3 . Swap 12 | . 7 5 Drop 6 | . 6 . Fire 93 | 5 56 32 Melee . | . . . Ram . | . . . Kick . | . . . Crush 3 | . 3 . Escape Stasis . | . . . Rewire . | . . . Trap . | . . . Miscellaneous . | . . . Route ------- -11/Scrapyard -10/Materials (discovered 6 exits: *Mat x3 / *Min x2 / *Sub) -10/Subcaves (discovered 1 exit: Rec) History --------- Turn | Location | Event 1 | -11/Scrapyard | Discovered new exit (range 2) 48 | -11/Scrapyard | Entered Materials 311 | -10/Materials | Build established: Mutant 620 | -10/Materials | Discovered new exit (range 14) 893 | -10/Materials | Discovered new exit (range 12) 1138 | -10/Materials | Core integrity fell below 50% 1443 | -10/Materials | Learned 4 Subcaves zone layouts 1493 | -10/Materials | Identified exit to Subcaves 1533 | -10/Materials | Learned Storage trap positions 1563 | -10/Materials | Learned 2 Storage zone layouts 1584 | -10/Materials | Learned location of Recycling (-9) 1621 | -10/Materials | Learned location of Storage (-9) 1641 | -10/Materials | Discovered new exit (range 14) 1655 | -10/Materials | Learned Storage emergency access door positions 1701 | -10/Materials | Identified exit to Mines 1701 | -10/Materials | Identified exit to Materials 2262 | -10/Materials | Entered Subcaves 2263 | -10/Subcaves | Approached by a straggling Scientist 2263 | -10/Subcaves | Identified exit to Recycling 2285 | -10/Subcaves | Ambushed by Subdwellers from Twisted Machinery 2289 | -10/Subcaves | Core integrity fell below 20% 2290 | -10/Subcaves | Ambushed by Subdweller buried in earth 2620 | -10/Subcaves | Build established: Scavenger-Mutant 2628 | -10/Subcaves | Shifting Twisted Machinery released Spk. Treads 2634 | -10/Subcaves | Shifting Twisted Machinery released Mak. Hammer 3333 | -10/Subcaves | Ambushed by angry Subdweller bent on revenge 4132 | -10/Subcaves | Destroyed by DB-285(R) with Subdweller Laser Last Messages --------------- 03348_ Subatomizers dissect the Wheel. 03348_ Acquired Multitool. 03352_ Acquired Wheel. 03360_ Acquired 29 matter. 03363_ Subatomizers dissect the Sub. Monowheel. 03578_ Searching scrap... 03578_ Found Sub. Beam Cannon. 03578_ Found 38 Matter. 03585_ Acquired Sub. Beam Cannon. 03588_ Searching scrap... 03588_ Found Battle Rifle. 03588_ Found Sub. Beam Cannon. 03588_ Found 38 Matter. 03589_ Acquired 10 matter. 03592_ Searching scrap... 03592_ Found Flamer. 03592_ Found 56 Matter. 03605_ Acquired Sub. Beam Cannon. 03615_ Subatomizers dissect the Battle Rifle. Map ----- +----------------------------------------------------+ | ?????????????????????????????????????????????????? | | ?????????????????????????????????????????????????? | | ?????????????????????????????????????????????????? | | ?????????????????????????????????????????????????? | | ?????????????????????????????????????????????????? | | ?????????????????????????????????????????????????? | | ?????????????????????????????????????????????????? | | ?????????????????????????????????????????????????? | | #####????????????????????????????????????????????? | | # ###??????????????????????????????????????????? | | #####??????????????????????????????????????? | | ##?????????????????????????????????????? | | ## ##????????????????????????????????????? | | ### ###??????????????????????????????????? | | ??# ## ##?????????????????????????????????? | | ??## ### #?????????????????????????????????? | | ???## ### #?????????????????????????????????? | | ????#### ##????????????????????????????????? | | ????### ### #????????????????????????????????? | | ??### ##?# #?????????????#######????????????? | | ?## #??## ##?????????????# # #????????????? | | ## #???###??????????????# #????????????? | | ##??## ##?????????????##" ####???????????? | | ## #??## #?###??###????### # ##??????????? | | ## #### #### #??# ###### # ## ###????????? | | #?# #??# @ < < ##???????? | | ### #??# R ##??????? | | ## ## ##?# ###????? | | ### #### ### ## ????? | | #?# #?## ### #### ????? | | ?# #??#### ##?# ##### ????? | | #?????# ##?## ## ##### ????? | | ###?????## ######??????????????????????? | | ##????????### #???????????????????????????? | | #???????????## #???????????????????????????? | | ##????????????# #???????????????????????????? | | #?????????????? ##???????????????????????????? | | ?????????????? ##????????????????????????????? | | ????????????????? ??????????????????????????????? | | ????????????????## ??????????????????????????????? | | ?????????????????##??????????????????????????????? | | ?????????????????????????????????????????????????? | | ?????????????????????????????????????????????????? | | ?????????????????????????????????????????????????? | | ?????????????????????????????????????????????????? | | ?????????????????????????????????????????????????? | | ?????????????????????????????????????????????????? | | ?????????????????????????????????????????????????? | | ?????????????????????????????????????????????????? | | ?????????????????????????????????????????????????? | +----------------------------------------------------+ Best States ------------- Heat Dissipation 25 Energy Generation 10 Energy Capacity 125 Matter Stores 300 Matter Capacity 300 Sight Range 16 Terrain Scan Density 10 Power Shielding 33 Evasion (%) 55 Recoil Reduction 2 Item Schematics ----------------- None Robot Schematics ------------------ None Fabricated ------------ Nothing Repaired ---------- Nothing Alien Tech Used ----------------- None Achievements -------------- None Challenges ------------ None Game ------ Seed SwordProjectionOptics Manual? 0 Play Time 00:12:32 Cumulative 483.5 hours Start 2025.06.24 @ 20:34:47 End 2025.06.24 @ 20:47:02 Sessions 1 Manual Loads 0 Difficulty Rogue Special Mode None Game No. 254 Rogue 191 Adventurer 63 Explorer 0 Win Type - Total 9 Types 8/0/0/1/0/0/0/0/0/0 Lore% 90 Gallery% 81 Achievement% 67 Wizard Run 0 Options --------- Layout 1 ASCII 0 Keyboard 1 Movement Numpad Keybinds 0 Fullscreen 1 Font 24/Terminus Map View 50x35 Zoom Use 0% Tactical HUD 1 Map Filters NONE Filters NONE Steam 1 RUN: 41fcadfd-db76-45f1-ac82-a68c5d4c2c3c